Workbook

Sheet Index
B1: ='Input | General'!$B$1 -> TransGrid 2018-23 Final Decision - Capital expenditure sharing scheme model
B2: Index
C4: Model index
C6: Sheet Name | D6: Sheet Description
C7: Input | General | D7: Inputs NSP name, regulatory years for the prior and forecast regulatory control period etc.
C8: Input | Inflation and Disc Rate | D8: Inputs the inflation and discount rate
C9: Input | Reported Capex | D9: Inputs the reported capital expenditure from the prior regulatory control period as well as the AER's forecast etc.
C10: Calc | CESS Revenue Increments | D10: Calculates the CESS payments from the prior regulatory control period
C11: Output | Models | D11: Outputs the CESS revenue increments needed as a post tax revenue model input
C12: Lookup | Tables | D12: Includes the lookup tables used within the CESS model.
C14: End

Sheet Input | General
B1: =$D$6&" "&$D$8&" "&D7&" - "&"Capital expenditure sharing scheme model" -> TransGrid 2018-23 Final Decision - Capital expenditure sharing scheme model | G1: Key: | H1: Input | I1: Internal Link
B2: Input | General
B4: Input | General
C6: NSP Name | D6: TransGrid
C7: Determination stage | D7: Final Decision
C8: Determination years | D8: 2018-23
C10: Regulatory control period details
D11: Year 1 | E11: Year 2 | F11: Year 3 | G11: Year 4 | H11: Year 5
C12: Regulatory control period CESS applied in (regulatory years) | D12: 2014-15 | E12: 2015-16 | F12: 2016-17 | G12: 2017-18 | H12: n/a
C13: CESS to apply to this year's expenditure (Yes/No) | D13: No | E13: Yes | F13: Yes | G13: Yes | H13: No
C14: Actual or estimate year | D14: Actual | E14: Actual | F14: Actual | G14: Estimate | H14: n/a
D16: Year 1 | E16: Year 2 | F16: Year 3 | G16: Year 4 | H16: Year 5
C17: Regulatory control period CESS revenue increment applied in (regulatory years) | D17: 2018-19 | E17: 2019-20 | F17: 2020-21 | G17: 2021-22 | H17: 2022-23
C18: Regulatory control period prior to CESS applied in (regulatory years) | D18: 2009-10 | E18: 2010-11 | F18: 2011-12 | G18: 2012-13 | H18: 2013-14
B20: End

Sheet Input | Inflation and Disc Rate
B1: ='Input | General'!$B$1 -> TransGrid 2018-23 Final Decision - Capital expenditure sharing scheme model | H1: Key: | I1: Input | J1: Internal Link | K1: AER amendments
C2: Input | Inflation and Discount rate
C4: Input | Inflation
D6: Source | E6: Unit
F7: ='Lookup | Tables'!$E$27 -> 2013-14 | G7: ='Lookup | Tables'!$E$28 -> 2014-15 | H7: ='Lookup | Tables'!$E$29 -> 2015-16 | I7: ='Lookup | Tables'!$E$30 -> 2016-17 | J7: ='Lookup | Tables'!$E$31 -> 2017-18 | K7: ='Lookup | Tables'!$E$32 -> 2018-19 | L7: ='Lookup | Tables'!$E$33 -> 2019-20 | M7: ='Lookup | Tables'!$E$34 -> 2020-21 | N7: ='Lookup | Tables'!$E$35 -> 2021-22 | O7: ='Lookup | Tables'!$E$36 -> 2022-23 | P7: ='Lookup | Tables'!$E$37 -> 2023-24
C8: Actual CPI Inflation Rate | D8: TNSP | E8: Per cent | G8: 0.01717557252 | H8: 0.01688555347 | I8: 0.0147601476 | J8: 0.02
C9: Forecast CPI Inflation Rate | D9: TNSP | E9: Per cent | K9: 0.02473798146 | L9: =K9 -> 0.02473798146 | M9: =L9 -> 0.02473798146 | N9: 0.02473798146 | O9: 0.02473798146 | P9: 0.02473798146
C10: ="CPI Index (base year "&F7&")" -> CPI Index (base year 2013-14) | D10: TNSP | E10: Index | F10: 1 | G10: =IF(G7<>"",(F10*(1+G8)),"") -> 1.017175573 | H10: =IF(H7<>"",(G10*(1+H8)),"") -> 1.034351145 | I10: =IF(I7<>"",(H10*(1+I8)),"") -> 1.049618321 | J10: =IF(J7<>"",(I10*(1+J8)),"") -> 1.070610687 | K10: =IF(K7<>"",(J10*(1+K9)),"") -> 1.097095434 | L10: 1.124235361 | M10: 1.152046674 | N10: 1.180545984 | O10: 1.209750308 | P10: 1.239677089
C13: Actual CPI Inflation Rate | D13: AER | E13: Per cent | G13: 0.01717557252 | H13: 0.01688555347 | I13: 0.0147601476 | J13: 0.01909090909
C14: Forecast CPI Inflation Rate | D14: AER | E14: Per cent | K14: 0.02449951148 | L14: =K14 -> 0.02449951148 | M14: =L14 -> 0.02449951148 | N14: 0.02449951148 | O14: 0.02449951148 | P14: 0.02449951148
C15: ="CPI Index (base year "&F7&")" -> CPI Index (base year 2013-14) | D15: AER | E15: Index | F15: 1 | G15: =IF(G7<>"",(F15*(1+G13)),"") -> 1.017175573 | H15: =IF(H7<>"",(G15*(1+H13)),"") -> 1.034351145 | I15: =IF(I7<>"",(H15*(1+I13)),"") -> 1.049618321 | J15: =IF(J7<>"",(I15*(1+J13)),"") -> 1.069656489 | K15: =IF(K7<>"",(J15*(1+K14)),"") -> 1.09586255 | L15: 1.122710647 | M15: 1.150216509 | N15: 1.178396252 | O15: 1.207266385 | P15: 1.236843821
C17: Input | Discount rate
D19: Source | E19: Unit | G19: ='Lookup | Tables'!$E$28 -> 2014-15 | H19: ='Lookup | Tables'!$E$29 -> 2015-16 | I19: ='Lookup | Tables'!$E$30 -> 2016-17 | J19: ='Lookup | Tables'!$E$31 -> 2017-18 | K19: ='Lookup | Tables'!$E$32 -> 2018-19 | L19: ='Lookup | Tables'!$E$33 -> 2019-20 | M19: ='Lookup | Tables'!$E$34 -> 2020-21 | N19: ='Lookup | Tables'!$E$35 -> 2021-22 | O19: ='Lookup | Tables'!$E$36 -> 2022-23
C20: Real Vanilla WACC | D20: AER | E20: Per cent | H20: 0.04267087649 | I20: 0.04187284015 | J20: 0.04082620464 | K20: 0.03993698959 | L20: =K20 -> 0.03993698959 | M20: =L20 -> 0.03993698959 | N20: 0.03993698959 | O20: 0.03993698959
C22: Nominal Vanilla WACC (fixed, real, time varying) | D22: Calculated | E22: Per cent | G22: =IF(AND('Input | Inflation and Disc Rate'!H8<>"",G20<>""),((1+G20)*(1+'Input | Inflation and Disc Rate'!H8)-1),"") ->  | H22: =IF(AND(H8<>"",H20<>""),((1+H20)*(1+H8)-1),"") -> 0.06027695133 | I22: =IF(AND(I8<>"",I20<>""),((1+I20)*(1+I8)-1),"") -> 0.05725103705 | J22: =IF(AND(J8<>"",J20<>""),((1+J20)*(1+J8)-1),"") -> 0.06164272873 | K22: =IF(AND(K14<>"",K20<>""),((1+K20)*(1+K14)-1),"") -> 0.0654149378 | L22: =IF(AND(L14<>"",L20<>""),((1+L20)*(1+L14)-1),"") -> 0.0654149378 | M22: =IF(AND(M14<>"",M20<>""),((1+M20)*(1+M14)-1),"") -> 0.0654149378 | N22: =IF(AND(N14<>"",N20<>""),((1+N20)*(1+N14)-1),"") -> 0.0654149378 | O22: =IF(AND(O14<>"",O20<>""),((1+O20)*(1+O14)-1),"") -> 0.0654149378
B24: End

Sheet Input | Reported Capex
B1: ='Input | General'!$B$1 -> TransGrid 2018-23 Final Decision - Capital expenditure sharing scheme model | I1: Key: | J1: Input | K1: Internal Link | L1: AER amendments
B2: Input | Capex
B4: Input | Capex Allowance
D6: Source | E6: Unit | F6: Basis | H6: n/a | I6: 2015-16 | J6: 2016-17 | K6: 2017-18 | L6: n/a
C8: Total capex allowance | D8: AER | E8: $millions | F8: 2013-14 | I8: 304.6056259 | J8: 235.3295741 | K8: 219.7842303
C9: Total excludable capex | D9: AER | E9: $millions | F9: 2013-14 | I9: 2.657220061 | J9: 2.657220061 | K9: 2.657220061
C11: Total capex allowance applicable to CESS | D11: Calculated | E11: $millions | F11: 2013-14 | H11: =IF(H6="", "", H8-H9) -> 0 | I11: =IF(I6="", "", I8-I9) -> 301.9484058 | J11: =IF(J6="", "", J8-J9) -> 232.6723541 | K11: 217.1270103 | L11: 0
B13: Input | Actual / Estimate Capex
D15: Source | E15: Unit | F15: Basis | H15: n/a | I15: 2015-16 | J15: 2016-17 | K15: 2017-18 | L15: n/a
C17: Total capex | D17: AER | E17: $millions | F17: nominal | I17: 247.264833 | J17: 184.75 | K17: 227.4815232
C18: Asset Disposals | D18: AER | E18: $millions | F18: nominal | I18: 2.86817991 | J18: 1.91676641 | K18: 3.883826534
C19: NCIPAP | D19: AER | E19: $millions | F19: nominal | I19: 7.10015156 | J19: 8.11062769 | K19: 3.16916597
C20: Total excludable capex | D20: AER | E20: $millions | F20: nominal | I20: =I18+I19 -> 9.96833147 | J20: =J18+J19 -> 10.0273941 | K20: 7.052992505
C22: Total actual capex applicable to CESS | D22: Calculated | E22: $millions | F22: nominal | H22: =IF(H15="", "", H17-H20) -> 0 | I22: =IF(I15="", "", I17-I20) -> 237.2965015 | J22: =IF(J15="", "", J17-J20) -> 174.7226059 | K22: =IF(K15="", "", K17-K20) -> 220.4285307 | L22: =IF(L15="", "", L17-L20) -> 0
B24: Input | Capex Deferred to following regulatory period
H26: ='Input | General'!D17 -> 2018-19 | I26: ='Input | General'!E17 -> 2019-20 | J26: ='Input | General'!F17 -> 2020-21 | K26: ='Input | General'!G17 -> 2021-22 | L26: ='Input | General'!H17 -> 2022-23
C28: Capex deferred and re-proposed | D28: TNSP | E28: $millions | F28: nominal | H28: 13.03150532 | I28: 26.62730498 | J28: 0 | K28: 0 | L28: 0
C29: Capex deferred and re-proposed | D29: Calculated | E29: $millions | F29: 2013-14 | H29: =IF(H28<>"",H28/('Input | Inflation and Disc Rate'!J10*(1+'Input | Inflation and Disc Rate'!K9)^0.5),"") -> 12.02421117 | I29: =IF(I28<>"",I28/('Input | Inflation and Disc Rate'!K10*(1+'Input | Inflation and Disc Rate'!L9)^0.5),"") -> 23.97598113 | J29: =IF(J28<>"",J28/('Input | Inflation and Disc Rate'!L10*(1+'Input | Inflation and Disc Rate'!M9)^0.5),"") -> 0 | K29: =IF(K28<>"",K28/('Input | Inflation and Disc Rate'!M10*(1+'Input | Inflation and Disc Rate'!N9)^0.5),"") -> 0 | L29: =IF(L28<>"",L28/('Input | Inflation and Disc Rate'!N10*(1+'Input | Inflation and Disc Rate'!O9)^0.5),"") -> 0
C30: Capex deferred and re-proposed | D30: AER | E30: $millions | F30: nominal | H30: =IF(H28<>"",H29*'Input | Inflation and Disc Rate'!J15*(1+'Input | Inflation and Disc Rate'!K14)^0.5,"") -> 13.01837575 | I30: =IF(I28<>"",I29*'Input | Inflation and Disc Rate'!K15*(1+'Input | Inflation and Disc Rate'!L14)^0.5,"") -> 26.59428702 | J30: =IF(J28<>"",J29*'Input | Inflation and Disc Rate'!L15*(1+'Input | Inflation and Disc Rate'!M14)^0.5,"") -> 0 | K30: =IF(K28<>"",K29*'Input | Inflation and Disc Rate'!M15*(1+'Input | Inflation and Disc Rate'!N14)^0.5,"") -> 0 | L30: =IF(L28<>"",L29*'Input | Inflation and Disc Rate'!N15*(1+'Input | Inflation and Disc Rate'!O14)^0.5,"") -> 0
B32: End

Sheet Calc | CESS Revenue Increments
B1: ='Input | General'!$B$1 -> TransGrid 2018-23 Final Decision - Capital expenditure sharing scheme model | K1: Key: | L1: Input | M1: Internal Link | N1: AER amendments
B2: Input | CESS Payments
B4: Calc | NPV of CESS payments
C6: Regulatory period 1
C7: Year | D7: n/a | E7: 2015-16 | F7: 2016-17 | G7: 2017-18 | H7: n/a
C8: Discount rate (Real WACC) | E8: ='Input | Inflation and Disc Rate'!H20 -> 0.04267087649 | F8: ='Input | Inflation and Disc Rate'!I20 -> 0.04187284015 | G8: ='Input | Inflation and Disc Rate'!J20 -> 0.04082620464
C9: Discount rate (Nominal, fixed real WACC) | E9: ='Input | Inflation and Disc Rate'!H22 -> 0.06027695133 | F9: ='Input | Inflation and Disc Rate'!I22 -> 0.05725103705 | G9: ='Input | Inflation and Disc Rate'!J22 -> 0.06164272873
C10: Capex allowance | E10: ='Input | Reported Capex'!I$11*'Input | Inflation and Disc Rate'!H$15*(1+'Input | Inflation and Disc Rate'!H$20)^0.5 -> 318.9145709 | F10: ='Input | Reported Capex'!J$11*'Input | Inflation and Disc Rate'!I$15*(1+'Input | Inflation and Disc Rate'!I$20)^0.5 -> 249.2777665 | G10: ='Input | Reported Capex'!K$11*'Input | Inflation and Disc Rate'!J$15*(1+'Input | Inflation and Disc Rate'!J$20)^0.5 -> 236.9448595
C11: Actual capex | E11: ='Input | Reported Capex'!I22*(1+E$9)^0.5 -> 244.3436155 | F11: ='Input | Reported Capex'!J22*(1+F$9)^0.5 -> 179.6545241 | G11: ='Input | Reported Capex'!K22*(1+G$9)^0.5 -> 227.1208478
C12: Underspend | E12: =(E10-E11) -> 74.57095533 | F12: =(F10-F11) -> 69.62324239 | G12: 9.824011769
C13: Year 1 benefit | E13: =$D$12*$E$8 -> 0 | F13: =$D$12*$F$8*(1+'Input | Inflation and Disc Rate'!H13) -> 0 | G13: =$D$12*$G$8*(1+'Input | Inflation and Disc Rate'!H13)*(1+'Input | Inflation and Disc Rate'!I13) -> 0
C14: Year 2 benefit | F14: =$E$12*F$8 -> 3.122497692 | G14: =$E$12*G$8*(1+'Input | Inflation and Disc Rate'!I13) -> 3.0893856
C15: Year 3 benefit | G15: =$F$12*G$8 -> 2.842452742
C16: Year 4 benefit
C17: Year 5 benefit
C18: Total financing benefit | E18: =SUM(E13:E17) -> 0 | F18: =SUM(F13:F17) -> 3.122497692 | G18: 5.931838342
C19: Discount factor (end of year) | E19: =F19*(1+F$9) -> 1.122422876 | F19: =G19*(1+G$9) -> 1.061642729 | G19: 1
C20: NPV underspend | E20: =E12*E19 -> 83.70014614 | F20: =F12*F19 -> 73.91500903 | G20: =G12*G19 -> 9.824011769
C21: NPV financing benefit | E21: =E18*E19 -> 0 | F21: =F18*F19 -> 3.31497697 | G21: =G18*G19 -> 5.931838342
C23: Regulatory period 2
C24: Year | D24: ='Input | General'!$D$17 -> 2018-19 | E24: ='Input | General'!$E$17 -> 2019-20 | F24: ='Input | General'!$F$17 -> 2020-21 | G24: ='Input | General'!$G$17 -> 2021-22 | H24: ='Input | General'!$H$17 -> 2022-23
C25: Discount rate: | D25: ='Input | Inflation and Disc Rate'!$K$22 -> 0.0654149378 | E25: ='Input | Inflation and Disc Rate'!$L$22 -> 0.0654149378 | F25: ='Input | Inflation and Disc Rate'!$M$22 -> 0.0654149378 | G25: ='Input | Inflation and Disc Rate'!$N$22 -> 0.0654149378 | H25: ='Input | Inflation and Disc Rate'!$O$22 -> 0.0654149378
C26: Increase in forecast capex in regulatory period 2 attributable to capex deferred in regulatory period 1 | D26: ='Input | Reported Capex'!H30 -> 13.01837575 | E26: ='Input | Reported Capex'!I30 -> 26.59428702 | F26: ='Input | Reported Capex'!J30 -> 0 | G26: ='Input | Reported Capex'!K30 -> 0 | H26: ='Input | Reported Capex'!L30 -> 0
C27: Discount factor (middle of year 5) | D27: =1/(1+D25)^(0.5) -> 0.9688144533 | E27: =1/((1+E25)^(0.5)*(1+D25)) -> 0.9093306456 | F27: =1/((1+F25)^(0.5)*(1+E25)*(1+D25)) -> 0.8534990579 | G27: =1/((1+G25)^(0.5)*(1+F25)*(1+E25)*(1+D25)) -> 0.8010954489 | H27: =1/((1+H25)^(0.5)*(1+G25)*(1+F25)*(1+E25)*(1+D25)) -> 0.7519093458
C28: NPV of increase in forecast capex from deferred capex | D28: =D26*D27 -> 12.61239058 | E28: =E26*E27 -> 24.18300018 | F28: 0 | G28: 0 | H28: 0
C30: CESS calculation (post-adjustment)
C31: Total underspend (NPV) adjusted for deferrals | D31: =SUM(D20:H20)-SUM(D28:H28) -> 130.6437762
C32: Relevant sharing ratio | D32: 0.3
C33: Consumer share | D33: =(1-D32)*D31 -> 91.45064332
C34: NSP share | D34: =D32*D31 -> 39.19313285
C35: Total NSP financing benefit (NPV) | D35: =SUM(D21:H21) -> 9.246815312
C36: NPV of CESS payments (post-adjustment) | D36: =D34-D35 -> 29.94631754
B38: Calc | Total CESS Payments
D40: ='Input | General'!D17 -> 2018-19 | E40: ='Input | General'!E17 -> 2019-20 | F40: ='Input | General'!F17 -> 2020-21 | G40: ='Input | General'!G17 -> 2021-22 | H40: ='Input | General'!H17 -> 2022-23
C41: =CONCATENATE("CESS Payment Per Year ($", 'Output | Models'!F4," million)") -> CESS Payment Per Year ($2017-18 million) | D41: =-PMT('Input | Inflation and Disc Rate'!K20,5,'Calc | CESS Revenue Increments'!$D$36) -> 6.725564201 | E41: =D41 -> 6.725564201 | F41: =E41 -> 6.725564201 | G41: 6.725564201 | H41: 6.725564201
C43: =CONCATENATE("Total CESS Payment ($", 'Output | Models'!$F$4," million)") -> Total CESS Payment ($2017-18 million) | D43: =SUM(D41:H41) -> 33.627821
B46: End

Sheet Output | Models
B1: ='Input | General'!$B$1 -> TransGrid 2018-23 Final Decision - Capital expenditure sharing scheme model | K1: Key: | L1: Input | M1: Internal Link
B2: Output | Models
B4: Inputs for Post Tax Revenue Model | E4: $millions | F4: 2017-18 | J4: Note. The dollar base should be consistent with the post tax revenue model
C6: Revenue Adjustments | D6: Source | E6: Unit | F6: Basis | J6: ='Calc | CESS Revenue Increments'!D40 -> 2018-19 | K6: ='Calc | CESS Revenue Increments'!E40 -> 2019-20 | L6: ='Calc | CESS Revenue Increments'!F40 -> 2020-21 | M6: ='Calc | CESS Revenue Increments'!G40 -> 2021-22 | N6: ='Calc | CESS Revenue Increments'!H40 -> 2022-23 | O6: Total
C8: CESS increments as per NER 6A.5.4(a)(5) | D8: Calc | CESS Revenue Increments | E8: =$E$4 -> $millions | F8: =$F$4 -> 2017-18 | J8: ='Calc | CESS Revenue Increments'!D41 -> 6.725564201 | K8: ='Calc | CESS Revenue Increments'!E41 -> 6.725564201 | L8: ='Calc | CESS Revenue Increments'!F41 -> 6.725564201 | M8: ='Calc | CESS Revenue Increments'!G41 -> 6.725564201 | N8: ='Calc | CESS Revenue Increments'!H41 -> 6.725564201 | O8: =SUM(J8:N8) -> 33.627821
B11: End

Sheet Lookup | Tables
B1: ='Input | General'!$B$1 -> TransGrid 2018-23 Final Decision - Capital expenditure sharing scheme model | I1: Key: | J1: Input | K1: Internal Link
B2: Lookup | Tables
B4: Unit Denominations
C6: Denominations | E6: Ref
C7: Dollars | E7: $dollars
C8: Thousands | E8: $000
C9: Millions | E9: $millions
C11: Actual | E11: Actual
C12: Estimate | E12: Estimate
C13: not applicable | E13: n/a
B16: Years
C18: =B16 -> Years | E18: Ref
C19: not applicable | E19: n/a
C20: nominal | E20: nominal
C21: 2007-08 | E21: 2007-08
C22: 2008-09 | E22: 2008-09
C23: 2009-10 | E23: 2009-10
C24: 2010-11 | E24: 2010-11
C25: 2011-12 | E25: 2011-12
C26: 2012-13 | E26: 2012-13
C27: 2013-14 | E27: 2013-14
C28: 2014-15 | E28: 2014-15
C29: 2015-16 | E29: 2015-16
C30: 2016-17 | E30: 2016-17
C31: 2017-18 | E31: 2017-18
C32: 2018-19 | E32: 2018-19
C33: 2019-20 | E33: 2019-20
C34: 2020-21 | E34: 2020-21
C35: 2021-22 | E35: 2021-22
C36: 2022-23 | E36: 2022-23
C37: 2023-24 | E37: 2023-24
B39: End
